Department Family,Entity,Date Paid,Expense Type,Expenses Area,Supplier Name,Transaction Reference,Total,VAT Registration Number
Department of Health,Imperial College Healthcare NHS Trust,17/12/2015,It Eqpt-Additions,Capital Summary,4 Way Solutions Ltd,3272547,"81,698.30",Optional requirement only
Department of Health,Imperial College Healthcare NHS Trust,17/12/2015,It Eqpt-Additions,Capital Summary,4 Way Solutions Ltd,3272592,"98,347.90",Optional requirement only
Department of Health,Imperial College Healthcare NHS Trust,22/12/2015,It Eqpt-Additions,Capital Summary,4 Way Solutions Ltd,3272589,"81,698.30",Optional requirement only
Department of Health,Imperial College Healthcare NHS Trust,22/12/2015,It Eqpt-Additions,Capital Summary,4 Way Solutions Ltd,3272594,"98,347.90",Optional requirement only
Department of Health,Imperial College Healthcare NHS Trust,01/12/2015,Jac - Stock,Stock,A A H Pharmaceuticals Limited,3256074,"32,851.08",Optional requirement only
Department of Health,Imperial College Healthcare NHS Trust,08/12/2015,Jac - Stock,Stock,A A H Pharmaceuticals Limited,3259758,"81,465.31",Optional requirement only
Department of Health,Imperial College Healthcare NHS Trust,01/12/2015,Acton Housing Association,Housing Deductions,A2dominion Housing Group Ltd,3262076,"182,546.79",Optional requirement only
Department of Health,Imperial College Healthcare NHS Trust,29/12/2015,Clinical Managed Service Contr,Investigative Sciences & C S,Abbott Laboratories Ltd,3272524,"439,731.96",Optional requirement only
Department of Health,Imperial College Healthcare NHS Trust,29/12/2015,Clinical Managed Service Contr,Investigative Sciences & C S,Abbott Laboratories Ltd,3272528,"143,258.36",Optional requirement only
Department of Health,Imperial College Healthcare NHS Trust,17/12/2015,Season Ticket Cr Abellio,Season Tickets,Abellio Transport Holdings Ltd,3272206,"141,962.40",Optional requirement only
Department of Health,Imperial College Healthcare NHS Trust,22/12/2015,Season Ticket Cr Abellio,Season Tickets,Abellio Transport Holdings Ltd,3272203,"51,608.00",Optional requirement only
Department of Health,Imperial College Healthcare NHS Trust,10/12/2015,Computer Software/License,Finance Directorate,Advanced Business Solutions,3267675,"75,600.00",Optional requirement only
Department of Health,Imperial College Healthcare NHS Trust,29/12/2015,Buildings-Additions-Purchased,Capital Summary,Alarm Communication Limited,3273837,"31,517.62",Optional requirement only
Department of Health,Imperial College Healthcare NHS Trust,29/12/2015,Buildings-Additions-Purchased,Capital Summary,Alarm Communication Limited,3273839,"36,304.27",Optional requirement only
Department of Health,Imperial College Healthcare NHS Trust,29/12/2015,Buildings-Additions-Purchased,Capital Summary,Alarm Communication Limited,3276880,"31,701.60",Optional requirement only
Department of Health,Imperial College Healthcare NHS Trust,29/12/2015,Buildings-Add(Prof Fee)-Purch,Capital Summary,Alarm Communication Limited,3273283,"30,955.68",Optional requirement only
Department of Health,Imperial College Healthcare NHS Trust,01/12/2015,Contr Other External,Investigative Sciences & C S,Alliance Diagnostic Services Ltd,3213525,"70,380.00",Optional requirement only
Department of Health,Imperial College Healthcare NHS Trust,01/12/2015,Med & Surg Equip Hire,Investigative Sciences & C S,Alliance Diagnostic Services Ltd,3216250,"49,603.20",Optional requirement only
Department of Health,Imperial College Healthcare NHS Trust,29/12/2015,Contr Other External,Investigative Sciences & C S,Alliance Diagnostic Services Ltd,3279044,"42,840.00",Optional requirement only
Department of Health,Imperial College Healthcare NHS Trust,29/12/2015,Jac - Stock,Stock,Alloga Uk Ltd,3268821,"82,719.00",Optional requirement only
Department of Health,Imperial College Healthcare NHS Trust,22/12/2015,Buildings-Additions-Purchased,Capital Summary,Amber Group Limited,3273840,"45,300.00",Optional requirement only
Department of Health,Imperial College Healthcare NHS Trust,04/12/2015,P & M-Additions-Purchased,Capital Summary,Avantec Ltd,3265784,"190,761.60",Optional requirement only
Department of Health,Imperial College Healthcare NHS Trust,08/12/2015,P & M-Additions-Purchased,Capital Summary,Avantec Ltd,3251598,"114,457.20",Optional requirement only
Department of Health,Imperial College Healthcare NHS Trust,08/12/2015,P & M-Additions-Purchased,Capital Summary,Avantec Ltd,3251599,"79,194.00",Optional requirement only
Department of Health,Imperial College Healthcare NHS Trust,15/12/2015,Consultancy Fees,Other Hq Departments,Baker Tilly Uk Group Llp,3269622,"31,521.89",Optional requirement only
Department of Health,Imperial College Healthcare NHS Trust,01/12/2015,Dialysers,Division Of Medicine,Baxter Healthcare Ltd,3258453,"66,089.30",Optional requirement only
Department of Health,Imperial College Healthcare NHS Trust,03/12/2015,Jac - Stock,Stock,Bayer Plc,3260552,"61,354.80",Optional requirement only
Department of Health,Imperial College Healthcare NHS Trust,17/12/2015,Jac - Stock,Stock,Bayer Plc,3268786,"83,904.00",Optional requirement only
Department of Health,Imperial College Healthcare NHS Trust,29/12/2015,Jac - Stock,Stock,Bayer Plc,3278730,"69,220.80",Optional requirement only
Department of Health,Imperial College Healthcare NHS Trust,29/12/2015,Laboratory Test Kits,Investigative Sciences & C S,Becton Dickinson Uk Ltd,3276728,"131,975.95",Optional requirement only
Department of Health,Imperial College Healthcare NHS Trust,29/12/2015,Laboratory Test Kits,Investigative Sciences & C S,Becton Dickinson Uk Ltd,3278081,"89,412.65",Optional requirement only
Department of Health,Imperial College Healthcare NHS Trust,29/12/2015,Laboratory Test Kits,Investigative Sciences & C S,Becton Dickinson Uk Ltd,3278082,"101,032.32",Optional requirement only
Department of Health,Imperial College Healthcare NHS Trust,01/12/2015,Ext Contr Laundry,Directorate Of Strategy,Berendsen Uk Limited,3261514,"38,687.79",Optional requirement only
Department of Health,Imperial College Healthcare NHS Trust,01/12/2015,Agency Admin & Clerical,Information & Comms Technology,Brook Street Uk Ltd,3261504,"65,146.44",Optional requirement only
Department of Health,Imperial College Healthcare NHS Trust,10/12/2015,Agency Admin & Clerical,Information & Comms Technology,Brook Street Uk Ltd,3266884,"68,356.82",Optional requirement only
Department of Health,Imperial College Healthcare NHS Trust,17/12/2015,Agency Admin & Clerical,Information & Comms Technology,Brook Street Uk Ltd,3272222,"78,801.35",Optional requirement only
Department of Health,Imperial College Healthcare NHS Trust,22/12/2015,Agency Admin & Clerical,Information & Comms Technology,Brook Street Uk Ltd,3274418,"60,629.86",Optional requirement only
Department of Health,Imperial College Healthcare NHS Trust,22/12/2015,Srvcsrecd - Foundationtrust,Finance Directorate,Calderstones Partnership-Nhs Foundation Trust,3261717,"34,215.00",Optional requirement only
Department of Health,Imperial College Healthcare NHS Trust,03/12/2015,P & M-Additions-Purchased,Capital Summary,Cardiac Services Ltd,3264102,"33,211.20",Optional requirement only
Department of Health,Imperial College Healthcare NHS Trust,10/12/2015,P & M-Additions-Purchased,Directorate Of Strategy,Carefusion Uk 306 Ltd,3255905,"25,190.00",Optional requirement only
Department of Health,Imperial College Healthcare NHS Trust,08/12/2015,Services Received - Nhsts,Division Of Medicine,Central & North West London,3265894,"41,680.00",Optional requirement only
Department of Health,Imperial College Healthcare NHS Trust,17/12/2015,Patients Appl: Purchase,"Surg, Canc & Cardiovasc Div",Chas A Blatchford And Sons Ltd,3272172,"53,909.70",Optional requirement only
Department of Health,Imperial College Healthcare NHS Trust,17/12/2015,Srvcsrecd-Foundationtrust,Investigative Sciences & C S,Chelsea And  Westminster Hospital Nhs,3270606,"58,963.33",Optional requirement only
Department of Health,Imperial College Healthcare NHS Trust,14/12/2015,Rates,Directorate Of Strategy,City Of Westminster,3269307,"111,078.00",Optional requirement only
Department of Health,Imperial College Healthcare NHS Trust,22/12/2015,Computer Software/License,Information & Comms Technology,Civica Services Ltd,3273235,"67,115.52",Optional requirement only
Department of Health,Imperial College Healthcare NHS Trust,22/12/2015,Childcare Voucher (Kids Unltd),Childcare Vouchers,Computershare Voucher Services,3275574,"77,594.13",Optional requirement only
Department of Health,Imperial College Healthcare NHS Trust,03/12/2015,Stents,"Surg, Canc & Cardiovasc Div",Cook Uk,3263870,"32,400.00",Optional requirement only
Department of Health,Imperial College Healthcare NHS Trust,29/12/2015,Gas,Directorate Of Strategy,Corona Energy,3270377,"104,249.18",Optional requirement only
Department of Health,Imperial College Healthcare NHS Trust,29/12/2015,Gas,Directorate Of Strategy,Corona Energy,3270387,"47,554.02",Optional requirement only
Department of Health,Imperial College Healthcare NHS Trust,29/12/2015,Gas,Directorate Of Strategy,Corona Energy,3270388,"78,964.60",Optional requirement only
Department of Health,Imperial College Healthcare NHS Trust,29/12/2015,Gas,Directorate Of Strategy,Corona Energy,3270389,"61,982.38",Optional requirement only
Department of Health,Imperial College Healthcare NHS Trust,01/12/2015,Other Gen Supplies & Srv,Information & Comms Technology,Crown Records Management,3262783,"32,314.73",Optional requirement only
Department of Health,Imperial College Healthcare NHS Trust,15/12/2015,Jac - Stock,Stock,Csl Behring Uk Ltd,3260703,"27,900.00",Optional requirement only
Department of Health,Imperial College Healthcare NHS Trust,17/12/2015,Jac - Stock,Stock,Csl Behring Uk Ltd,3260704,"51,894.00",Optional requirement only
Department of Health,Imperial College Healthcare NHS Trust,01/12/2015,Phone Instal & Maint,Information & Comms Technology,Daisy Corporate Services Ltd,3261395,"51,117.60",Optional requirement only
Department of Health,Imperial College Healthcare NHS Trust,08/12/2015,Med & Surg Equip Hire,"Surg, Canc & Cardiovasc Div",De Lage Landen Leasing Limited,3265901,"77,275.87",Optional requirement only
Department of Health,Imperial College Healthcare NHS Trust,15/12/2015,Buildings-Additions-Purchased,Capital Summary,Deanway Builders,3270187,"111,318.00",Optional requirement only
Department of Health,Imperial College Healthcare NHS Trust,01/12/2015,Buildings-Add(Prof Fee)-Purch,Capital Summary,Deloitte And Touche Llp,3261819,"30,000.00",Optional requirement only
Department of Health,Imperial College Healthcare NHS Trust,17/12/2015,Taxi & Other Vehicle Hire,Directorate Of Strategy,Dhl Supply Chain  (Former Excel),3272178,"30,445.22",Optional requirement only
Department of Health,Imperial College Healthcare NHS Trust,22/12/2015,Ext Contract - Patient Travel,Directorate Of Strategy,Dhl Supply Chain  (Former Excel),3271737,"54,457.48",Optional requirement only
Department of Health,Imperial College Healthcare NHS Trust,22/12/2015,Ext Contract - Patient Travel,Directorate Of Strategy,Dhl Supply Chain  (Former Excel),3273436,"32,200.00",Optional requirement only
Department of Health,Imperial College Healthcare NHS Trust,22/12/2015,Ext Contract - Patient Travel,Division Of Medicine,Dhl Supply Chain  (Former Excel),3274139,"519,076.12",Optional requirement only
Department of Health,Imperial College Healthcare NHS Trust,22/12/2015,Ext Contr Logistics,Finance Directorate,Dhl Supply Chain  (Former Excel),3274156,"32,586.08",Optional requirement only
Department of Health,Imperial College Healthcare NHS Trust,22/12/2015,Ext Contr Logistics,Finance Directorate,Dhl Supply Chain  (Former Excel),3274157,"140,446.18",Optional requirement only
Department of Health,Imperial College Healthcare NHS Trust,22/12/2015,Ext Contr Logistics,Finance Directorate,Dhl Supply Chain  (Former Excel),3274158,"140,446.18",Optional requirement only
Department of Health,Imperial College Healthcare NHS Trust,22/12/2015,Ext Contract - Patient Travel,Investigative Sciences & C S,Dhl Supply Chain  (Former Excel),3274139,"31,243.91",Optional requirement only
Department of Health,Imperial College Healthcare NHS Trust,22/12/2015,Other Transport Costs,Investigative Sciences & C S,Dhl Supply Chain  (Former Excel),3273081,"88,951.27",Optional requirement only
Department of Health,Imperial College Healthcare NHS Trust,15/12/2015,Ext Contract - Patient Travel,Other Hq Departments,Dhl Supply Chain  (Former Excel),3268401,"79,794.00",Optional requirement only
Department of Health,Imperial College Healthcare NHS Trust,15/12/2015,Hopper Service,Other Hq Departments,Dhl Supply Chain  (Former Excel),3268401,"83,562.00",Optional requirement only
Department of Health,Imperial College Healthcare NHS Trust,22/12/2015,Ext Contract - Patient Travel,"Surg, Canc & Cardiovasc Div",Dhl Supply Chain  (Former Excel),3274139,"146,117.43",Optional requirement only
Department of Health,Imperial College Healthcare NHS Trust,29/12/2015,Transcription Services,Division Of Medicine,Dictate It Ltd,3272229,"37,128.51",Optional requirement only
Department of Health,Imperial College Healthcare NHS Trust,29/12/2015,Transcription Services,"Surg, Canc & Cardiovasc Div",Dictate It Ltd,3272231,"41,035.21",Optional requirement only
Department of Health,Imperial College Healthcare NHS Trust,14/12/2015,Consultancy Fees,Other Hq Departments,Dnu Baker Tilly Business Services Limited,3257684,"31,521.89",Optional requirement only
Department of Health,Imperial College Healthcare NHS Trust,15/12/2015,Buildings-Add(Prof Fee)-Purch,Capital Summary,Dp9,3270743,"44,630.20",Optional requirement only
Department of Health,Imperial College Healthcare NHS Trust,29/12/2015,Buildings-Add(Prof Fee)-Purch,Capital Summary,Dp9,3276879,"44,630.20",Optional requirement only
Department of Health,Imperial College Healthcare NHS Trust,17/12/2015,Electricity,Directorate Of Strategy,Edf Energy Customer Plc,3266895,"81,118.79",Optional requirement only
Department of Health,Imperial College Healthcare NHS Trust,17/12/2015,Electricity,Directorate Of Strategy,Edf Energy Customer Plc,3266896,"231,411.38",Optional requirement only
Department of Health,Imperial College Healthcare NHS Trust,17/12/2015,Electricity,Directorate Of Strategy,Edf Energy Customer Plc,3266899,"33,715.05",Optional requirement only
Department of Health,Imperial College Healthcare NHS Trust,17/12/2015,Electricity,Directorate Of Strategy,Edf Energy Customer Plc,3266904,"233,176.42",Optional requirement only
Department of Health,Imperial College Healthcare NHS Trust,29/12/2015,Computer Software/License,Press & Communications,Eduserve,3276614,"62,887.20",Optional requirement only
Department of Health,Imperial College Healthcare NHS Trust,29/12/2015,Buildings-Add(Prof Fee)-Purch,Capital Summary,Essentia Trading Ltd,3276804,"36,812.40",Optional requirement only
Department of Health,Imperial College Healthcare NHS Trust,29/12/2015,Buildings-Add(Prof Fee)-Purch,Capital Summary,Essentia Trading Ltd,3276839,"45,510.00",Optional requirement only
Department of Health,Imperial College Healthcare NHS Trust,15/12/2015,Buildings-Additions-Purchased,Capital Summary,Eta  Projects Ltd,3270196,"35,752.80",Optional requirement only
Department of Health,Imperial College Healthcare NHS Trust,15/12/2015,It Eqpt-Additions,Capital Summary,European Electronique Ltd,3270758,"43,348.80",Optional requirement only
Department of Health,Imperial College Healthcare NHS Trust,15/12/2015,Buildings-Add(Prof Fee)-Purch,Capital Summary,Feilden Clegg Bardley Studios,3270753,"115,735.50",Optional requirement only
Department of Health,Imperial College Healthcare NHS Trust,22/12/2015,Computer Software/License,Finance Directorate,Fiscal Technologies,3272542,"33,327.60",Optional requirement only
Department of Health,Imperial College Healthcare NHS Trust,10/12/2015,Clinical Managed Service Contr,Investigative Sciences & C S,Genmed.Me Ltd,3262816,"36,682.13",Optional requirement only
Department of Health,Imperial College Healthcare NHS Trust,10/12/2015,Clinical Managed Service Contr,Investigative Sciences & C S,Genmed.Me Ltd,3267493,"48,114.95",Optional requirement only
Department of Health,Imperial College Healthcare NHS Trust,03/12/2015,Jac - Stock,Stock,Genzyme Therapeutics Ltd,3253444,"50,724.00",Optional requirement only
Department of Health,Imperial College Healthcare NHS Trust,29/12/2015,Jac - Stock,Stock,Genzyme Therapeutics Ltd,3275928,"76,086.00",Optional requirement only
Department of Health,Imperial College Healthcare NHS Trust,01/12/2015,Jac - Stock,Stock,Healthcare At Home Ltd,3260626,"42,902.16",Optional requirement only
Department of Health,Imperial College Healthcare NHS Trust,10/12/2015,Other Research Exp - Non-Pay,Rd Medical Directorate,Hillingdon Hospital Nhs Trust,3262415,"97,827.00",Optional requirement only
Department of Health,Imperial College Healthcare NHS Trust,29/12/2015,Other Research Exp - Pay,Rd Medical Directorate,Hillingdon Hospital Nhs Trust,3278314,"25,974.00",Optional requirement only
Department of Health,Imperial College Healthcare NHS Trust,17/12/2015,Buildings-Additions-Purchased,Capital Summary,Howard Electrical Ltd,3271770,"47,130.96",Optional requirement only
Department of Health,Imperial College Healthcare NHS Trust,17/12/2015,Buildings-Additions-Purchased,Capital Summary,Howard Electrical Ltd,3271772,"121,864.08",Optional requirement only
Department of Health,Imperial College Healthcare NHS Trust,01/12/2015,Jac - Stock,Stock,Idis Limited,3262358,"41,979.53",Optional requirement only
Department of Health,Imperial College Healthcare NHS Trust,17/12/2015,Decontamination Services,Directorate Of Strategy,Ihss Ltd,3258623,"320,891.38",Optional requirement only
Department of Health,Imperial College Healthcare NHS Trust,29/12/2015,Decontamination Services,Directorate Of Strategy,Ihss Ltd,3265916,"320,891.38",Optional requirement only
Department of Health,Imperial College Healthcare NHS Trust,01/12/2015,Dist Award - Local Cea,Division Of Medicine,Imperial College London,3261505,"38,030.10",Optional requirement only
Department of Health,Imperial College Healthcare NHS Trust,01/12/2015,Dist Award - Nat Cea,Division Of Medicine,Imperial College London,3261505,"64,801.07",Optional requirement only
Department of Health,Imperial College Healthcare NHS Trust,01/12/2015,Ic Pay Recharge In: Med,Division Of Medicine,Imperial College London,3261505,"58,107.81",Optional requirement only
Department of Health,Imperial College Healthcare NHS Trust,01/12/2015,Ic Pay Recharge In: Med,Division Of Medicine,Imperial College London,3261506,"26,707.73",Optional requirement only
Department of Health,Imperial College Healthcare NHS Trust,01/12/2015,Ic Pay Recharge In: Med,Division Of Medicine,Imperial College London,3261507,"103,253.14",Optional requirement only
Department of Health,Imperial College Healthcare NHS Trust,01/12/2015,Dist Award - Nat Cea,Division Of Women And Children,Imperial College London,3261505,"31,616.53",Optional requirement only
Department of Health,Imperial College Healthcare NHS Trust,01/12/2015,Ic Pay Recharge In: Med,Division Of Women And Children,Imperial College London,3261507,"64,910.26",Optional requirement only
Department of Health,Imperial College Healthcare NHS Trust,01/12/2015,Dist Award - Nat Cea,Investigative Sciences & C S,Imperial College London,3261505,"25,982.61",Optional requirement only
Department of Health,Imperial College Healthcare NHS Trust,01/12/2015,Ic Pay Recharge In: Med,Investigative Sciences & C S,Imperial College London,3261507,"39,494.56",Optional requirement only
Department of Health,Imperial College Healthcare NHS Trust,01/12/2015,Dist Award - Nat Cea,Medical Director Summary,Imperial College London,3261505,"31,576.20",Optional requirement only
Department of Health,Imperial College Healthcare NHS Trust,17/12/2015,Ic Pay Rechge In: Admin & Mgmt,Medical Director Summary,Imperial College London,3272413,"68,162.62",Optional requirement only
Department of Health,Imperial College Healthcare NHS Trust,01/12/2015,Other Research Exp - Pay,Rd Iscs Division,Imperial College London,3262862,"89,201.48",Optional requirement only
Department of Health,Imperial College Healthcare NHS Trust,01/12/2015,Dist Award - Local Cea,"Surg, Canc & Cardiovasc Div",Imperial College London,3261505,"41,976.37",Optional requirement only
Department of Health,Imperial College Healthcare NHS Trust,01/12/2015,Dist Award - Nat Cea,"Surg, Canc & Cardiovasc Div",Imperial College London,3261505,"71,705.98",Optional requirement only
Department of Health,Imperial College Healthcare NHS Trust,01/12/2015,Ic Pay Recharge In: Med,"Surg, Canc & Cardiovasc Div",Imperial College London,3261505,"92,019.67",Optional requirement only
Department of Health,Imperial College Healthcare NHS Trust,01/12/2015,Ic Pay Recharge In: Med,"Surg, Canc & Cardiovasc Div",Imperial College London,3261507,"203,643.50",Optional requirement only
Department of Health,Imperial College Healthcare NHS Trust,08/12/2015,P & M-Additions-Purchased,Capital Summary,Inspiration Healthcare Ltd,3266557,"171,765.00",Optional requirement only
Department of Health,Imperial College Healthcare NHS Trust,29/12/2015,P & M-Additions-Purchased,Capital Summary,Inspiration Healthcare Ltd,3278290,"51,408.00",Optional requirement only
Department of Health,Imperial College Healthcare NHS Trust,29/12/2015,P & M-Additions-Purchased,Capital Summary,Inspiration Healthcare Ltd,3278306,"51,912.00",Optional requirement only
Department of Health,Imperial College Healthcare NHS Trust,15/12/2015,Jac - Stock,Stock,Janssen-Cilag Ltd,3260613,"36,594.24",Optional requirement only
Department of Health,Imperial College Healthcare NHS Trust,10/12/2015,It Eqpt-Additions,Capital Summary,Kelway (Uk) Ltd,3262477,"64,835.51",Optional requirement only
Department of Health,Imperial College Healthcare NHS Trust,17/12/2015,It Eqpt-Additions,Capital Summary,Kelway (Uk) Ltd,3267964,"104,498.40",Optional requirement only
Department of Health,Imperial College Healthcare NHS Trust,29/12/2015,It Eqpt-Additions,Capital Summary,Kelway (Uk) Ltd,3276492,"43,518.00",Optional requirement only
Department of Health,Imperial College Healthcare NHS Trust,29/12/2015,Nhs Pay Recharge In: Nursing,Division Of Women And Children,Kings College Hospital Nhs Foundation Trust,3276750,"59,463.00",Optional requirement only
Department of Health,Imperial College Healthcare NHS Trust,15/12/2015,Clinical Managed Service Contr,Investigative Sciences & C S,Leica Microsystems (Uk) Ltd,3270770,"74,446.09",Optional requirement only
Department of Health,Imperial College Healthcare NHS Trust,03/12/2015,Drugs Nhs,Investigative Sciences & C S,Lloyds Retail Chemists Ltd,3258940,"3,965,464.29",Optional requirement only
Department of Health,Imperial College Healthcare NHS Trust,10/12/2015,Drugs Nhs,Investigative Sciences & C S,Lloyds Retail Chemists Ltd,3258941,"3,852,454.49",Optional requirement only
Department of Health,Imperial College Healthcare NHS Trust,01/12/2015,Rates,Directorate Of Strategy,London Borough Hammersmith & Fulham,3260546,"137,997.00",Optional requirement only
Department of Health,Imperial College Healthcare NHS Trust,01/12/2015,Rates,Directorate Of Strategy,London Borough Hammersmith & Fulham,3260547,"157,491.00",Optional requirement only
Department of Health,Imperial College Healthcare NHS Trust,22/12/2015,Rates,Directorate Of Strategy,London Borough Hammersmith & Fulham,3272534,"137,997.00",Optional requirement only
Department of Health,Imperial College Healthcare NHS Trust,22/12/2015,Rates,Directorate Of Strategy,London Borough Hammersmith & Fulham,3272536,"157,491.00",Optional requirement only
Department of Health,Imperial College Healthcare NHS Trust,01/12/2015,Non-Nhs Pay Recharge In: Med,Division Of Medicine,London Central & West Unscheduled Care Collab,3262469,"43,928.56",Optional requirement only
Department of Health,Imperial College Healthcare NHS Trust,22/12/2015,Non-Nhs Pay Recharge In: Med,Division Of Medicine,London Central & West Unscheduled Care Collab,3273102,"43,928.56",Optional requirement only
Department of Health,Imperial College Healthcare NHS Trust,22/12/2015,Non-Nhs Pay Recharge In: Med,Division Of Medicine,London Central & West Unscheduled Care Collab,3273105,"43,928.56",Optional requirement only
Department of Health,Imperial College Healthcare NHS Trust,17/12/2015,Buildings-Additions-Purchased,Capital Summary,Me Construction Ltd,3271720,"285,000.00",Optional requirement only
Department of Health,Imperial College Healthcare NHS Trust,01/12/2015,Srvcsrecd-Other Nhs,Investigative Sciences & C S,Micropathology Ltd,3261812,"28,841.50",Optional requirement only
Department of Health,Imperial College Healthcare NHS Trust,08/12/2015,It Eqpt-Additions,Capital Summary,Netcall Telecom Limited,3265586,"90,817.20",Optional requirement only
Department of Health,Imperial College Healthcare NHS Trust,15/12/2015,Blood Products,Investigative Sciences & C S,Nhs Blood And Transplant,3258463,"71,463.00",Optional requirement only
Department of Health,Imperial College Healthcare NHS Trust,15/12/2015,Blood Products,Investigative Sciences & C S,Nhs Blood And Transplant,3258466,"333,296.83",Optional requirement only
Department of Health,Imperial College Healthcare NHS Trust,15/12/2015,Blood Products,Investigative Sciences & C S,Nhs Blood And Transplant,3258468,"174,326.58",Optional requirement only
Department of Health,Imperial College Healthcare NHS Trust,22/12/2015,Blood Products,Investigative Sciences & C S,Nhs Blood And Transplant,3273871,"333,296.83",Optional requirement only
Department of Health,Imperial College Healthcare NHS Trust,17/12/2015,Drugs Nhs,Investigative Sciences & C S,Nhs Business Services Authority,3272112,"36,551.07",Optional requirement only
Department of Health,Imperial College Healthcare NHS Trust,22/12/2015,Insurance Costs,Directorate Of Strategy,Nhs Litigation Authority,3271108,"45,940.50",Optional requirement only
Department of Health,Imperial College Healthcare NHS Trust,22/12/2015,Cnst Contributions,Other Hq Departments,Nhs Litigation Authority,3271106,"2,506,808.50",Optional requirement only
Department of Health,Imperial College Healthcare NHS Trust,14/12/2015,Supplies Issues Recharges,Stock,Nhs Supply Chain,3263800,"92,541.01",Optional requirement only
Department of Health,Imperial College Healthcare NHS Trust,14/12/2015,Supplies Issues Recharges,Stock,Nhs Supply Chain,3263807,"138,550.83",Optional requirement only
Department of Health,Imperial College Healthcare NHS Trust,14/12/2015,Supplies Issues Recharges,Stock,Nhs Supply Chain,3263816,"81,541.43",Optional requirement only
Department of Health,Imperial College Healthcare NHS Trust,14/12/2015,Supplies Issues Recharges,Stock,Nhs Supply Chain,3264949,"83,135.26",Optional requirement only
Department of Health,Imperial College Healthcare NHS Trust,14/12/2015,Supplies Issues Recharges,Stock,Nhs Supply Chain,3264951,"79,535.33",Optional requirement only
Department of Health,Imperial College Healthcare NHS Trust,17/12/2015,Supplies Issues Recharges,Stock,Nhs Supply Chain,3272409,"107,875.79",Optional requirement only
Department of Health,Imperial College Healthcare NHS Trust,17/12/2015,Supplies Issues Recharges,Stock,Nhs Supply Chain,3272415,"140,613.10",Optional requirement only
Department of Health,Imperial College Healthcare NHS Trust,17/12/2015,Supplies Issues Recharges,Stock,Nhs Supply Chain,3272416,"101,022.84",Optional requirement only
Department of Health,Imperial College Healthcare NHS Trust,31/12/2015,Supplies Issues Recharges,Stock,Nhs Supply Chain,3274837,"148,376.41",Optional requirement only
Department of Health,Imperial College Healthcare NHS Trust,31/12/2015,Supplies Issues Recharges,Stock,Nhs Supply Chain,3280861,"83,999.46",Optional requirement only
Department of Health,Imperial College Healthcare NHS Trust,29/12/2015,Med & Surg Equip General,"Surg, Canc & Cardiovasc Div",Novacor Uk Ltd,3278413,"75,094.55",Optional requirement only
Department of Health,Imperial College Healthcare NHS Trust,10/12/2015,Jac - Stock,Stock,Novartis Pharmaceutical (Uk) Ltd,3255932,"47,547.36",Optional requirement only
Department of Health,Imperial College Healthcare NHS Trust,22/12/2015,Jac - Stock,Stock,Novartis Pharmaceutical (Uk) Ltd,3265808,"49,150.08",Optional requirement only
Department of Health,Imperial College Healthcare NHS Trust,22/12/2015,Computer Hardware Purch,Information & Comms Technology,Patients Know Best Limited,3275270,"33,879.60",Optional requirement only
Department of Health,Imperial College Healthcare NHS Trust,22/12/2015,Computer Software/License,Information & Comms Technology,Patients Know Best Limited,3275270,"87,120.00",Optional requirement only
Department of Health,Imperial College Healthcare NHS Trust,29/12/2015,Interpreting Services,Investigative Sciences & C S,Pearl Linguistics Ltd,3276580,"36,068.81",Optional requirement only
Department of Health,Imperial College Healthcare NHS Trust,15/12/2015,Jac - Stock,Stock,Qualasept Ltd,3270236,"53,721.36",Optional requirement only
Department of Health,Imperial College Healthcare NHS Trust,15/12/2015,Jac - Stock,Stock,Qualasept Ltd,3270238,"162,459.00",Optional requirement only
Department of Health,Imperial College Healthcare NHS Trust,17/12/2015,Jac - Stock,Stock,Qualasept Ltd,3270235,"181,253.16",Optional requirement only
Department of Health,Imperial College Healthcare NHS Trust,15/12/2015,Agency Nursing: Qualified,Division Of Medicine,Reed,3269268,"95,124.57",Optional requirement only
Department of Health,Imperial College Healthcare NHS Trust,17/12/2015,Agency Nursing: Qualified,Division Of Medicine,Reed,3272221,"95,092.86",Optional requirement only
Department of Health,Imperial College Healthcare NHS Trust,15/12/2015,Agency Nursing: Qualified,Division Of Women And Children,Reed,3269268,"112,556.39",Optional requirement only
Department of Health,Imperial College Healthcare NHS Trust,17/12/2015,Agency Nursing: Qualified,Division Of Women And Children,Reed,3272221,"67,019.94",Optional requirement only
Department of Health,Imperial College Healthcare NHS Trust,08/12/2015,Agency Scient & Prof Qualified,Investigative Sciences & C S,Reed,3265800,"45,185.79",Optional requirement only
Department of Health,Imperial College Healthcare NHS Trust,15/12/2015,Agency Scient & Prof Qualified,Investigative Sciences & C S,Reed,3269267,"47,271.56",Optional requirement only
Department of Health,Imperial College Healthcare NHS Trust,15/12/2015,Agency Scient & Prof Qualified,Investigative Sciences & C S,Reed,3269269,"54,248.07",Optional requirement only
Department of Health,Imperial College Healthcare NHS Trust,22/12/2015,Agency Scient & Prof Qualified,Investigative Sciences & C S,Reed,3274273,"47,813.70",Optional requirement only
Department of Health,Imperial College Healthcare NHS Trust,15/12/2015,Agency Nursing: Qualified,"Surg, Canc & Cardiovasc Div",Reed,3269268,"181,315.44",Optional requirement only
Department of Health,Imperial College Healthcare NHS Trust,17/12/2015,Agency Nursing: Qualified,"Surg, Canc & Cardiovasc Div",Reed,3272221,"104,953.66",Optional requirement only
Department of Health,Imperial College Healthcare NHS Trust,22/12/2015,Agency Scient & Prof Qualified,"Surg, Canc & Cardiovasc Div",Reed,3274273,"38,931.85",Optional requirement only
Department of Health,Imperial College Healthcare NHS Trust,03/12/2015,Jac - Stock,Stock,Roche Products Ltd,3250977,"55,708.46",Optional requirement only
Department of Health,Imperial College Healthcare NHS Trust,03/12/2015,Jac - Stock,Stock,Roche Products Ltd,3250980,"95,719.75",Optional requirement only
Department of Health,Imperial College Healthcare NHS Trust,08/12/2015,Jac - Stock,Stock,Roche Products Ltd,3257783,"43,867.68",Optional requirement only
Department of Health,Imperial College Healthcare NHS Trust,08/12/2015,Jac - Stock,Stock,Roche Products Ltd,3257788,"44,926.08",Optional requirement only
Department of Health,Imperial College Healthcare NHS Trust,15/12/2015,Jac - Stock,Stock,Roche Products Ltd,3266234,"34,221.60",Optional requirement only
Department of Health,Imperial College Healthcare NHS Trust,17/12/2015,Jac - Stock,Stock,Roche Products Ltd,3266250,"104,778.00",Optional requirement only
Department of Health,Imperial College Healthcare NHS Trust,29/12/2015,Jac - Stock,Stock,Roche Products Ltd,3269868,"54,754.56",Optional requirement only
Department of Health,Imperial College Healthcare NHS Trust,22/12/2015,Buildings-Additions-Purchased,Capital Summary,Shj Hospital Pipelines Ltd,3273917,"58,794.00",Optional requirement only
Department of Health,Imperial College Healthcare NHS Trust,22/12/2015,Computer Software/License,Human Resources,Skills For Health Ltd,3273158,"40,000.00",Optional requirement only
Department of Health,Imperial College Healthcare NHS Trust,22/12/2015,Ext Contr Catering,Directorate Of Strategy,Sodexo Limited,3274429,"43,385.59",Optional requirement only
Department of Health,Imperial College Healthcare NHS Trust,22/12/2015,Ext Contr Catering,Directorate Of Strategy,Sodexo Limited,3274430,"43,385.59",Optional requirement only
Department of Health,Imperial College Healthcare NHS Trust,22/12/2015,Ext Contr Catering,Directorate Of Strategy,Sodexo Limited,3274431,"43,385.59",Optional requirement only
Department of Health,Imperial College Healthcare NHS Trust,22/12/2015,Ext Contract Portering,Investigative Sciences & C S,Sodexo Limited,3274431,"31,628.46",Optional requirement only
Department of Health,Imperial College Healthcare NHS Trust,17/12/2015,Ext Contr Hotel Srvcs - Pp,Private Patients Directorate,Sodexo Limited,3272188,"80,301.48",Optional requirement only
Department of Health,Imperial College Healthcare NHS Trust,17/12/2015,Ext Contr Oth Hotel Srv,Private Patients Directorate,Sodexo Limited,3272198,"168,458.00",Optional requirement only
Department of Health,Imperial College Healthcare NHS Trust,17/12/2015,Ext Contr Oth Hotel Srv,Private Patients Directorate,Sodexo Limited,3272199,"168,458.00",Optional requirement only
Department of Health,Imperial College Healthcare NHS Trust,17/12/2015,Ext Contr Oth Hotel Srv,Private Patients Directorate,Sodexo Limited,3272200,"168,458.00",Optional requirement only
Department of Health,Imperial College Healthcare NHS Trust,22/12/2015,P & M-Additions-Purchased,Capital Summary,Sorin Group Uk Ltd(Former Dideco Spa-Uk ),3273925,"33,481.57",Optional requirement only
Department of Health,Imperial College Healthcare NHS Trust,17/12/2015,Cleaning Materials,Directorate Of Strategy,Synergy Health Uk Ltd,3261521,"41,326.32",Optional requirement only
Department of Health,Imperial College Healthcare NHS Trust,17/12/2015,Ext Contr Laundry,Directorate Of Strategy,Synergy Health Uk Ltd,3261522,"49,678.97",Optional requirement only
Department of Health,Imperial College Healthcare NHS Trust,17/12/2015,Ext Contr Laundry,Directorate Of Strategy,Synergy Health Uk Ltd,3261523,"36,236.21",Optional requirement only
Department of Health,Imperial College Healthcare NHS Trust,22/12/2015,Laboratory Chemicals/ Reagents,Investigative Sciences & C S,Sysmex Uk Ltd,3270754,"101,627.10",Optional requirement only
Department of Health,Imperial College Healthcare NHS Trust,29/12/2015,Rent,Directorate Of Strategy,Thames Valley Charitable Housing,3276768,"41,495.88",Optional requirement only
Department of Health,Imperial College Healthcare NHS Trust,01/12/2015,Thames Valley Housing Assoc,Housing Deductions,Thames Valley Charitable Housing,3262077,"109,019.82",Optional requirement only
Department of Health,Imperial College Healthcare NHS Trust,29/12/2015,Organ Donor Expenses,"Surg, Canc & Cardiovasc Div",The Anthony Nolan Trust,3279024,"37,830.00",Optional requirement only
Department of Health,Imperial College Healthcare NHS Trust,29/12/2015,Services Received - Nhsts,Division Of Medicine,West London Mental Health Nhs Trust,3276554,"49,054.00",Optional requirement only
Department of Health,Imperial College Healthcare NHS Trust,17/12/2015,Postage & Carriage,Directorate Of Strategy,Whistl London Limited,3270789,"44,089.91",Optional requirement only
Department of Health,Imperial College Healthcare NHS Trust,29/12/2015,Buildings-Additions-Purchased,Capital Summary,Willmott Dixon Construction,3266370,"33,918.76",Optional requirement only
,,,,,,Sum:,"27,084,427.42",
